{"text_format":"3","workbook":"xlsx","n_sheets":2,"sheets":["ÎNCEPUT","FOAIE DE PONTAJ ANUALĂ"],"not_rendered":{"defined_names":2},"read":"whole","date_system":"1900"}

{"sheet":"ÎNCEPUT","index":0,"n_rows":8,"n_cols":2,"rows_kept":8}
[null,"DESPRE ACEST ȘABLON"]
[null,"Urmăriți orele dvs. zilnic, săptămânal, lunar și anual în angajat Fișă de pontaj a angajatului."]
[null,"Completați informațiile de bază, cum ar fi numele angajatului, numele managerului, adresa de e-mail și numărul de telefon. "]
[null,"Adăugați-vă orele în fiecare tabel lunar. Înregistrați orele normale și orele suplimentare în coloane separate pentru fiecare zi a săptămânii, în fiecare săptămână. "]
[null,"Totalul orelor de lucru, al orelor normale și al orelor suplimentare se calculează automat. "]
[null,"Note:"]
[null,"Instrucțiuni suplimentare sunt furnizate în coloana A din foaia de lucru FOAIE DE PONTAJ ANUALĂ. Acest text a fost ascuns intenționat. Pentru a elimina textul, selectați coloana A, apoi ȘTERGERE. Pentru a reafișa textul, selectați coloana A, apoi schimbați culoarea de font. "]
[null,"Pentru a afla mai multe despre tabele, apăsați SHIFT, apoi F10 într-un tabel, selectați opțiunea TABEL, apoi TEXT ALTERNATIV."]

{"sheet":"FOAIE DE PONTAJ ANUALĂ","index":1,"n_rows":132,"n_cols":15,"rows_kept":132,"merged":[[0,1,0,2],[0,4,0,14],[10,6,10,7],[21,6,21,7],[32,6,32,7],[33,4,33,14],[43,6,43,7],[54,6,54,7],[65,6,65,7],[66,4,66,14],[76,6,76,7],[87,6,87,7],[98,6,98,7],[99,4,99,14],[109,6,109,7],[120,6,120,7],[131,6,131,7]]}
["Creați o foaie de pontaj a angajatului zilnic, săptămânal, lunar sau anual în această foaie de lucru. \nGăsiți instrucțiuni utile despre cum să utilizați acest registru de lucru în celulele din această coloană. Apăsați săgeata în jos pentru a începe.\nTitlul acestei foi de lucru se află în celula din dreapta, iar titlul trimestrului ianuarie, februarie, martie se află în celula E1.","ANGAJAT \nFIȘĂ DE PONTAJ",null,null,"Ianuarie, februarie, martie       Angajat Fișa de pontaj: Zilnic, săptămânal, lunar, anual"]
["Introduceți nume angajat în celula C2, iar orele normale și cele suplimentare în tabelul pentru ianuarie, începând cu celula E2.","Nume angajat:",null,null,"Ianuarie","Săptămâna 1","Ore suplimentare","Săptămâna 2","Ore suplimentare  ","Săptămâna 3","Ore suplimentare   ","Săptămâna 4","Ore suplimentare    ","Săptămâna 5","Ore suplimentare     "]
["Introduceți numele managerului în celula C3.","Manager:",null,null,"Luni",{"v":8,"d":"8.0"}]
["Introduceți adresa de e-mail în celula C4.","E-mail:",null,null,"Marți",{"v":8,"d":"8.0"},{"v":2,"d":"2.0"}]
["Introduceți numărul de telefon în celula C5. Următoarele instrucțiuni se află în celula A9.","Telefon:",null,null,"Miercuri"]
[{"$nulls":4},"Joi"]
[{"$nulls":4},"Vineri"]
[{"$nulls":4},"Sâmbătă"]
["Totalul orelor normale anuale se calculează automat în celula C9.","Ore obișnuite:",{"$f":"OreNormale","v":31},null,"Duminică"]
["Totalul orelor suplimentare anuale se calculează automat în celula C10.","Ore suplimentare:",{"$f":"Ore_suplimentare","v":4},null,"Număr total de ore săptămânal",{"$f":"SUM(F3:F9)","v":{"v":16,"d":"16.0"}},{"v":2,"d":"2.0"},{"v":0,"d":"0.0"},{"v":0,"d":"0.0"},{"v":0,"d":"0.0"},{"v":0,"d":"0.0"},{"v":0,"d":"0.0"},{"v":0,"d":"0.0"},{"v":0,"d":"0.0"},{"v":0,"d":"0.0"}]
["Totalul orelor generale anuale se calculează automat în celula C11. Totalul orelor normale pentru ianuarie din celula F11 și totalul orelor suplimentare pentru ianuarie din celula I11 se calculează automat. Următoarele instrucțiuni se află în celula A13.","Total",{"$f":"OreNormale+Ore_suplimentare","v":35},null,{"$f":"TEXT(DATEVALUE(Ianuarie[[#Headers],[Ianuarie]]&\"  \"&YEAR(TODAY())),\"mmm.\")&\" total: Ore obișnuite\"","v":"ian. total: Ore obișnuite"},{"$f":"SUM(Ianuarie[Săptămâna 1],Ianuarie[Săptămâna 2],Ianuarie[Săptămâna 3],Ianuarie[Săptămâna 4],Ianuarie[Săptămâna 5])","v":{"v":16,"d":"16.0"}},{"$f":"TEXT(DATEVALUE(Ianuarie[[#Headers],[Ianuarie]]&\"  \"&YEAR(TODAY())),\"mmm.\")&\" total: Ore suplimentare\"","v":"ian. total: Ore suplimentare"},null,{"$f":"SUM(Ianuarie[Ore suplimentare],Ianuarie[[Ore suplimentare  ]],Ianuarie[[Ore suplimentare   ]],Ianuarie[[Ore suplimentare    ]],Ianuarie[[Ore suplimentare     ]])","v":{"v":2,"d":"2.0"}}]
[]
["Introduceți orele normale și orele suplimentare în tabelul pentru februarie începând cu celula E13. Următoarele instrucțiuni se află în celula A22.",{"$nulls":3},"Februarie","Săptămâna 1","Ore suplimentare","Săptămâna 2","Ore suplimentare  ","Săptămâna 3","Ore suplimentare   ","Săptămâna 4","Ore suplimentare    ","Săptămâna 5","Ore suplimentare     "]
[{"$nulls":4},"Luni",{"v":8,"d":"8.0"}]
[{"$nulls":4},"Marți",{"v":7,"d":"7.0"},{"v":2,"d":"2.0"}]
[{"$nulls":4},"Miercuri"]
[{"$nulls":4},"Joi"]
[{"$nulls":4},"Vineri"]
[{"$nulls":4},"Sâmbătă"]
[{"$nulls":4},"Duminică"]
[{"$nulls":4},"Număr total de ore săptămânal",{"$f":"SUM(F14:F20)","v":{"v":15,"d":"15.0"}},{"v":2,"d":"2.0"},{"v":0,"d":"0.0"},{"v":0,"d":"0.0"},{"v":0,"d":"0.0"},{"v":0,"d":"0.0"},{"v":0,"d":"0.0"},{"v":0,"d":"0.0"},{"v":0,"d":"0.0"},{"v":0,"d":"0.0"}]
["Totalul orelor normale pentru februarie din celula F22 și totalul orelor suplimentare pentru februarie din celula I22 se calculează automat. Următoarele instrucțiuni se află în celula A24.",{"$nulls":3},{"$f":"TEXT(DATEVALUE(Februarie[[#Headers],[Februarie]]&\"  \"&YEAR(TODAY())),\"mmm.\")&\" total: Ore obișnuite\"","v":"feb. total: Ore obișnuite"},{"$f":"SUM(Februarie[Săptămâna 1],Februarie[Săptămâna 2],Februarie[Săptămâna 3],Februarie[Săptămâna 4],Februarie[Săptămâna 5])","v":{"v":15,"d":"15.0"}},{"$f":"TEXT(DATEVALUE(Februarie[[#Headers],[Februarie]]&\" \"&YEAR(TODAY())),\"mmm.\")&\" total: Ore suplimentare\"","v":"feb. total: Ore suplimentare"},null,{"$f":"SUM(Februarie[Ore suplimentare],Februarie[[Ore suplimentare  ]],Februarie[[Ore suplimentare   ]],Februarie[[Ore suplimentare    ]],Februarie[[Ore suplimentare     ]])","v":{"v":2,"d":"2.0"}}]
[]
["Introduceți orele normale și orele suplimentare în tabelul pentru martie începând cu celula E24. Următoarele instrucțiuni se află în celula A33.",{"$nulls":3},"Martie","Săptămâna 1","Ore suplimentare","Săptămâna 2","Ore suplimentare ","Săptămâna 3","Ore suplimentare  ","Săptămâna 4","Ore suplimentare    ","Săptămâna 5","Ore suplimentare     "]
[{"$nulls":4},"Luni"]
[{"$nulls":4},"Marți"]
[{"$nulls":4},"Miercuri"]
[{"$nulls":4},"Joi"]
[{"$nulls":4},"Vineri"]
[{"$nulls":4},"Sâmbătă"]
[{"$nulls":4},"Duminică"]
[{"$nulls":4},"Număr total de ore săptămânal",{"$f":"SUM(F25:F31)","v":{"v":0,"d":"0.0"}},{"v":0,"d":"0.0"},{"v":0,"d":"0.0"},{"v":0,"d":"0.0"},{"v":0,"d":"0.0"},{"v":0,"d":"0.0"},{"v":0,"d":"0.0"},{"v":0,"d":"0.0"},{"v":0,"d":"0.0"},{"v":0,"d":"0.0"}]
["Totalul orelor normale pentru martie din celula F33 și totalul orelor suplimentare pentru martie din celula I33 se calculează automat.",{"$nulls":3},{"$f":"TEXT(DATEVALUE(Martie[[#Headers],[Martie]]&\" \"&YEAR(TODAY())),\"mmm.\")&\" total: Ore obișnuite\"","v":"mar. total: Ore obișnuite"},{"$f":"SUM(Martie[Săptămâna 1],Martie[Săptămâna 2],Martie[Săptămâna 3],Martie[Săptămâna 4],Martie[Săptămâna 5])","v":{"v":0,"d":"0.0"}},{"$f":"TEXT(DATEVALUE(Martie[[#Headers],[Martie]]&\" \"&YEAR(TODAY())),\"mmm.\")&\" total: Ore suplimentare\"","v":"mar. total: Ore suplimentare"},null,{"$f":"SUM(Martie[Ore suplimentare],Martie[[Ore suplimentare ]],Martie[[Ore suplimentare  ]],Martie[[Ore suplimentare    ]],Martie[[Ore suplimentare     ]])","v":{"v":0,"d":"0.0"}}]
["Titlul celui de-al doilea trimestru aprilie, mai, iunie se află în celula E34. ",{"$nulls":3},"Aprilie, mai, iunie      Fișa de pontaj a angajatului: Zilnic, săptămânal, lunar, anual"]
["Introduceți orele normale și orele suplimentare pentru aprilie în tabelul pentru aprilie începând cu celula E35. Următoarele instrucțiuni se află în celula A44.",{"$nulls":3},"Aprilie","Săptămâna 1","Ore suplimentare","Săptămâna 2","Ore suplimentare  ","Săptămâna 3","Ore suplimentare   ","Săptămâna 4","Ore suplimentare    ","Săptămâna 5","Ore suplimentare     "]
[{"$nulls":4},"Luni"]
[{"$nulls":4},"Marți"]
[{"$nulls":4},"Miercuri"]
[{"$nulls":4},"Joi"]
[{"$nulls":4},"Vineri"]
[{"$nulls":4},"Sâmbătă"]
[{"$nulls":4},"Duminică"]
[{"$nulls":4},"Număr total de ore săptămânal",{"$f":"SUM(F36:F42)","v":{"v":0,"d":"0.0"}},{"v":0,"d":"0.0"},{"v":0,"d":"0.0"},{"v":0,"d":"0.0"},{"v":0,"d":"0.0"},{"v":0,"d":"0.0"},{"v":0,"d":"0.0"},{"v":0,"d":"0.0"},{"v":0,"d":"0.0"},{"v":0,"d":"0.0"}]
["Totalul orelor normale pentru aprilie din celula F44 și totalul orelor suplimentare pentru aprilie din celula I44 se calculează automat. Următoarele instrucțiuni se află în celula A46.",{"$nulls":3},{"$f":"TEXT(DATEVALUE(Aprilie[[#Headers],[Aprilie]]&\" \"&YEAR(TODAY())),\"mmm.\")&\" total: Ore obișnuite\"","v":"apr. total: Ore obișnuite"},{"$f":"SUM(Aprilie[Săptămâna 1],Aprilie[Săptămâna 2],Aprilie[Săptămâna 3],Aprilie[Săptămâna 4],Aprilie[Săptămâna 5])","v":{"v":0,"d":"0.0"}},{"$f":"TEXT(DATEVALUE(Aprilie[[#Headers],[Aprilie]]&\" \"&YEAR(TODAY())),\"mmm.\")&\" total: Ore suplimentare\"","v":"apr. total: Ore suplimentare"},null,{"$f":"SUM(Aprilie[Ore suplimentare],Aprilie[[Ore suplimentare  ]],Aprilie[[Ore suplimentare   ]],Aprilie[[Ore suplimentare    ]],Aprilie[[Ore suplimentare     ]])","v":{"v":0,"d":"0.0"}}]
[]
["Introduceți orele normale și orele suplimentare în tabelul pentru mai începând cu celula E46. Următoarele instrucțiuni se află în celula A55.",{"$nulls":3},"Mai","Săptămâna 1","Ore suplimentare","Săptămâna 2","Ore suplimentare  ","Săptămâna 3","Ore suplimentare   ","Săptămâna 4","Ore suplimentare    ","Săptămâna 5","Ore suplimentare     "]
[{"$nulls":4},"Luni"]
[{"$nulls":4},"Marți"]
[{"$nulls":4},"Miercuri"]
[{"$nulls":4},"Joi"]
[{"$nulls":4},"Vineri"]
[{"$nulls":4},"Sâmbătă"]
[{"$nulls":4},"Duminică"]
[{"$nulls":4},"Număr total de ore săptămânal",{"$f":"SUM(F47:F53)","v":{"v":0,"d":"0.0"}},{"v":0,"d":"0.0"},{"v":0,"d":"0.0"},{"v":0,"d":"0.0"},{"v":0,"d":"0.0"},{"v":0,"d":"0.0"},{"v":0,"d":"0.0"},{"v":0,"d":"0.0"},{"v":0,"d":"0.0"},{"v":0,"d":"0.0"}]
["Totalul orelor normale pentru mai din celula F55 și totalul orelor suplimentare pentru mai din celula I55 se calculează automat. Următoarele instrucțiuni se află în celula A57.",{"$nulls":3},{"$f":"TEXT(DATEVALUE(Mai[[#Headers],[Mai]]&\" \"&YEAR(TODAY())),\"mmm.\")&\" total: Ore obișnuite\"","v":"mai. total: Ore obișnuite"},{"$f":"SUM(Mai[Săptămâna 1],Mai[Săptămâna 2],Mai[Săptămâna 3],Mai[Săptămâna 4],Mai[Săptămâna 5])","v":{"v":0,"d":"0.0"}},{"$f":"TEXT(DATEVALUE(Mai[[#Headers],[Mai]]&\" \"&YEAR(TODAY())),\"mmm.\")&\" total: Ore suplimentare\"","v":"mai. total: Ore suplimentare"},null,{"$f":"SUM(Mai[Ore suplimentare],Mai[[Ore suplimentare  ]],Mai[[Ore suplimentare   ]],Mai[[Ore suplimentare    ]],Mai[[Ore suplimentare     ]])","v":{"v":0,"d":"0.0"}}]
[]
["Introduceți orele normale și orele suplimentare pentru iunie în tabel începând cu celula E57. Următoarele instrucțiuni se află în celula A66.",{"$nulls":3},"Iunie","Săptămâna 1","Ore suplimentare","Săptămâna 2","Ore suplimentare  ","Săptămâna 3","Ore suplimentare   ","Săptămâna 4","Ore suplimentare    ","Săptămâna 5","Ore suplimentare     "]
[{"$nulls":4},"Luni"]
[{"$nulls":4},"Marți"]
[{"$nulls":4},"Miercuri"]
[{"$nulls":4},"Joi"]
[{"$nulls":4},"Vineri"]
[{"$nulls":4},"Sâmbătă"]
[{"$nulls":4},"Duminică"]
[{"$nulls":4},"Număr total de ore săptămânal",{"$f":"SUM(F58:F64)","v":{"v":0,"d":"0.0"}},{"v":0,"d":"0.0"},{"v":0,"d":"0.0"},{"v":0,"d":"0.0"},{"v":0,"d":"0.0"},{"v":0,"d":"0.0"},{"v":0,"d":"0.0"},{"v":0,"d":"0.0"},{"v":0,"d":"0.0"},{"v":0,"d":"0.0"}]
["Totalul orelor normale pentru iunie din celula F66 și totalul orelor suplimentare pentru iunie din celula I66 se calculează automat.",{"$nulls":3},{"$f":"TEXT(DATEVALUE(Iunie[[#Headers],[Iunie]]&\" \"&YEAR(TODAY())),\"mmm.\")&\" total: Ore obișnuite\"","v":"iun. total: Ore obișnuite"},{"$f":"SUM(Iunie[Săptămâna 1],Iunie[Săptămâna 2],Iunie[Săptămâna 3],Iunie[Săptămâna 4],Iunie[Săptămâna 5])","v":{"v":0,"d":"0.0"}},{"$f":"TEXT(DATEVALUE(Iunie[[#Headers],[Iunie]]&\" \"&YEAR(TODAY())),\"mmm.\")&\" total: Ore suplimentare\"","v":"iun. total: Ore suplimentare"},null,{"$f":"SUM(Iunie[Ore suplimentare],Iunie[[Ore suplimentare  ]],Iunie[[Ore suplimentare   ]],Iunie[[Ore suplimentare    ]],Iunie[[Ore suplimentare     ]])","v":{"v":0,"d":"0.0"}}]
["Titlul celui de al treilea trimestru iulie, august, septembrie se află în celula E67. ",{"$nulls":3},"Iulie, august, septembrie      Fișa de pontaj a angajatului: Zilnic, săptămânal, lunar, anual"]
["Introduceți orele normale și orele suplimentare pentru iulie în tabel începând cu celula E68. Următoarele instrucțiuni se află în celula A77.",{"$nulls":3},"Iulie","Săptămâna 1","Ore suplimentare","Săptămâna 2","Ore suplimentare ","Săptămâna 3","Ore suplimentare  ","Săptămâna 4","Ore suplimentare   ","Săptămâna 5","Ore suplimentare     "]
[{"$nulls":4},"Luni"]
[{"$nulls":4},"Marți"]
[{"$nulls":4},"Miercuri"]
[{"$nulls":4},"Joi"]
[{"$nulls":4},"Vineri"]
[{"$nulls":4},"Sâmbătă"]
[{"$nulls":4},"Duminică"]
[{"$nulls":4},"Număr total de ore săptămânal",{"$f":"SUM(F69:F75)","v":{"v":0,"d":"0.0"}},{"v":0,"d":"0.0"},{"v":0,"d":"0.0"},{"v":0,"d":"0.0"},{"v":0,"d":"0.0"},{"v":0,"d":"0.0"},{"v":0,"d":"0.0"},{"v":0,"d":"0.0"},{"v":0,"d":"0.0"},{"v":0,"d":"0.0"}]
["Totalul orelor normale pentru iulie din celula F77 și totalul orelor suplimentare pentru iulie din celula I77 se calculează automat. Următoarele instrucțiuni se află în celula A79.",{"$nulls":3},{"$f":"TEXT(DATEVALUE(Iulie[[#Headers],[Iulie]]&\" \"&YEAR(TODAY())),\"mmm.\")&\" total: Ore obișnuite\"","v":"iul. total: Ore obișnuite"},{"$f":"SUM(Iulie[Săptămâna 1],Iulie[Săptămâna 2],Iulie[Săptămâna 3],Iulie[Săptămâna 4],Iulie[Săptămâna 5])","v":{"v":0,"d":"0.0"}},{"$f":"TEXT(DATEVALUE(Iulie[[#Headers],[Iulie]]&\" \"&YEAR(TODAY())),\"mmm.\")&\" total: Ore suplimentare\"","v":"iul. total: Ore suplimentare"},null,{"$f":"SUM(Iulie[Ore suplimentare],Iulie[[Ore suplimentare ]],Iulie[[Ore suplimentare  ]],Iulie[[Ore suplimentare   ]],Iulie[[Ore suplimentare     ]])","v":{"v":0,"d":"0.0"}}]
[]
["Introduceți orele normale și orele suplimentare pentru august în tabel începând cu celula E79. Următoarele instrucțiuni se află în celula A88.",{"$nulls":3},"August","Săptămâna 1","Ore suplimentare","Săptămâna 2","Ore suplimentare ","Săptămâna 3","Ore suplimentare   ","Săptămâna 4","Ore suplimentare  ","Săptămâna 5","Ore suplimentare    "]
[{"$nulls":4},"Luni"]
[{"$nulls":4},"Marți"]
[{"$nulls":4},"Miercuri"]
[{"$nulls":4},"Joi"]
[{"$nulls":4},"Vineri"]
[{"$nulls":4},"Sâmbătă"]
[{"$nulls":4},"Duminică"]
[{"$nulls":4},"Număr total de ore săptămânal",{"$f":"SUBTOTAL(109,August[Săptămâna 1])","v":{"v":0,"d":"0.0"}},{"$f":"SUBTOTAL(109,August[Ore suplimentare])","v":{"v":0,"d":"0.0"}},{"$f":"SUBTOTAL(109,August[Săptămâna 2])","v":{"v":0,"d":"0.0"}},{"$f":"SUBTOTAL(109,August[[Ore suplimentare ]])","v":{"v":0,"d":"0.0"}},{"$f":"SUBTOTAL(109,August[Săptămâna 3])","v":{"v":0,"d":"0.0"}},{"$f":"SUBTOTAL(109,August[[Ore suplimentare   ]])","v":{"v":0,"d":"0.0"}},{"$f":"SUBTOTAL(109,August[Săptămâna 4])","v":{"v":0,"d":"0.0"}},{"$f":"SUBTOTAL(109,August[[Ore suplimentare  ]])","v":{"v":0,"d":"0.0"}},{"$f":"SUBTOTAL(109,August[Săptămâna 5])","v":{"v":0,"d":"0.0"}},{"$f":"SUBTOTAL(109,August[[Ore suplimentare    ]])","v":{"v":0,"d":"0.0"}}]
["Totalul orelor normale pentru august din celula F88 și totalul orelor suplimentare pentru august din celula I88 se calculează automat. Următoarele instrucțiuni se află în celula A90.",{"$nulls":3},{"$f":"TEXT(DATEVALUE(August[[#Headers],[August]]&\" \"&YEAR(TODAY())),\"mmm.\")&\" total: Ore obișnuite\"","v":"aug. total: Ore obișnuite"},{"$f":"SUM(August[Săptămâna 1],August[Săptămâna 2],August[Săptămâna 3],August[Săptămâna 4],August[Săptămâna 5])","v":{"v":0,"d":"0.0"}},{"$f":"TEXT(DATEVALUE(August[[#Headers],[August]]&\" \"&YEAR(TODAY())),\"mmm.\")&\" total: Ore suplimentare\"","v":"aug. total: Ore suplimentare"},null,{"$f":"SUM(August[Ore suplimentare],August[[Ore suplimentare ]],August[[Ore suplimentare   ]],August[[Ore suplimentare  ]],August[[Ore suplimentare    ]])","v":{"v":0,"d":"0.0"}}]
[]
["Introduceți orele normale și orele suplimentare pentru septembrie în tabel începând cu celula E90. Următoarele instrucțiuni se află în celula A99.",{"$nulls":3},"Septembrie","Săptămâna 1","Ore suplimentare","Săptămâna 2","Ore suplimentare ","Săptămâna 3","Ore suplimentare  ","Săptămâna 4","Ore suplimentare   ","Săptămâna 5","Ore suplimentare    "]
[{"$nulls":4},"Luni"]
[{"$nulls":4},"Marți"]
[{"$nulls":4},"Miercuri"]
[{"$nulls":4},"Joi"]
[{"$nulls":4},"Vineri"]
[{"$nulls":4},"Sâmbătă"]
[{"$nulls":4},"Duminică"]
[{"$nulls":4},"Număr total de ore săptămânal",{"$f":"SUBTOTAL(109,Septembrie[Săptămâna 1])","v":{"v":0,"d":"0.0"}},{"$f":"SUBTOTAL(109,Septembrie[Ore suplimentare])","v":{"v":0,"d":"0.0"}},{"$f":"SUBTOTAL(109,Septembrie[Săptămâna 2])","v":{"v":0,"d":"0.0"}},{"$f":"SUBTOTAL(109,Septembrie[[Ore suplimentare ]])","v":{"v":0,"d":"0.0"}},{"$f":"SUBTOTAL(109,Septembrie[Săptămâna 3])","v":{"v":0,"d":"0.0"}},{"$f":"SUBTOTAL(109,Septembrie[[Ore suplimentare  ]])","v":{"v":0,"d":"0.0"}},{"$f":"SUBTOTAL(109,Septembrie[Săptămâna 4])","v":{"v":0,"d":"0.0"}},{"$f":"SUBTOTAL(109,Septembrie[[Ore suplimentare   ]])","v":{"v":0,"d":"0.0"}},{"$f":"SUBTOTAL(109,Septembrie[Săptămâna 5])","v":{"v":0,"d":"0.0"}},{"$f":"SUBTOTAL(109,Septembrie[[Ore suplimentare    ]])","v":{"v":0,"d":"0.0"}}]
["Totalul orelor normale pentru septembrie din celula F99 și totalul orelor suplimentare pentru septembrie din celula I99 se calculează automat.",{"$nulls":3},{"$f":"TEXT(DATEVALUE(Septembrie[[#Headers],[Septembrie]]&\" \"&YEAR(TODAY())),\"mmm.\")&\" total: Ore obișnuite\"","v":"sept. total: Ore obișnuite"},{"$f":"SUM(Septembrie[Săptămâna 1],Septembrie[Săptămâna 2],Septembrie[Săptămâna 3],Septembrie[Săptămâna 4],Septembrie[Săptămâna 5])","v":{"v":0,"d":"0.0"}},{"$f":"TEXT(DATEVALUE(Septembrie[[#Headers],[Septembrie]]&\" \"&YEAR(TODAY())),\"mmm.\")&\" total: Ore suplimentare\"","v":"sept. total: Ore suplimentare"},null,{"$f":"SUM(Septembrie[Ore suplimentare],Septembrie[[Ore suplimentare ]],Septembrie[[Ore suplimentare  ]],Septembrie[[Ore suplimentare   ]],Septembrie[[Ore suplimentare    ]])","v":{"v":0,"d":"0.0"}}]
["Titlul celui de al patrulea trimestru octombrie, noiembrie, decembrie se află în celula E100. ",{"$nulls":3},"Octombrie, noiembrie, decembrie      Fișa de pontaj a angajatului: Zilnic, săptămânal, lunar, anual"]
["Introduceți orele normale și orele suplimentare pentru octombrie în tabel începând cu celula E101. Următoarele instrucțiuni se află în celula A110.",{"$nulls":3},"Octombrie","Săptămâna 1","Ore suplimentare","Săptămâna 2","Ore suplimentare ","Săptămâna 3","Ore suplimentare  ","Săptămâna 4","Ore suplimentare   ","Săptămâna 5","Ore suplimentare    "]
[{"$nulls":4},"Luni"]
[{"$nulls":4},"Marți"]
[{"$nulls":4},"Miercuri"]
[{"$nulls":4},"Joi"]
[{"$nulls":4},"Vineri"]
[{"$nulls":4},"Sâmbătă"]
[{"$nulls":4},"Duminică"]
[{"$nulls":4},"Număr total de ore săptămânal",{"$f":"SUBTOTAL(109,Octombrie[Săptămâna 1])","v":{"v":0,"d":"0.0"}},{"$f":"SUBTOTAL(109,Octombrie[Ore suplimentare])","v":{"v":0,"d":"0.0"}},{"$f":"SUBTOTAL(109,Octombrie[Săptămâna 2])","v":{"v":0,"d":"0.0"}},{"$f":"SUBTOTAL(109,Octombrie[[Ore suplimentare ]])","v":{"v":0,"d":"0.0"}},{"$f":"SUBTOTAL(109,Octombrie[Săptămâna 3])","v":{"v":0,"d":"0.0"}},{"$f":"SUBTOTAL(109,Octombrie[[Ore suplimentare  ]])","v":{"v":0,"d":"0.0"}},{"$f":"SUBTOTAL(109,Octombrie[Săptămâna 4])","v":{"v":0,"d":"0.0"}},{"$f":"SUBTOTAL(109,Octombrie[[Ore suplimentare   ]])","v":{"v":0,"d":"0.0"}},{"$f":"SUBTOTAL(109,Octombrie[Săptămâna 5])","v":{"v":0,"d":"0.0"}},{"$f":"SUBTOTAL(109,Octombrie[[Ore suplimentare    ]])","v":{"v":0,"d":"0.0"}}]
["Totalul orelor normale pentru octombrie din celula F110 și totalul orelor suplimentare pentru octombrie din celula I110 se calculează automat. Următoarele instrucțiuni se află în celula A112.",{"$nulls":3},{"$f":"TEXT(DATEVALUE(Octombrie[[#Headers],[Octombrie]]&\" \"&YEAR(TODAY())),\"mmm.\")&\" total: Ore obișnuite\"","v":"oct. total: Ore obișnuite"},{"$f":"SUM(Octombrie[Săptămâna 1],Octombrie[Săptămâna 2],Octombrie[Săptămâna 3],Octombrie[Săptămâna 4],Octombrie[Săptămâna 5])","v":{"v":0,"d":"0.0"}},{"$f":"TEXT(DATEVALUE(Octombrie[[#Headers],[Octombrie]]&\" \"&YEAR(TODAY())),\"mmm.\")&\" total: Ore suplimentare\"","v":"oct. total: Ore suplimentare"},null,{"$f":"SUM(Octombrie[Ore suplimentare],Octombrie[[Ore suplimentare ]],Octombrie[[Ore suplimentare  ]],Octombrie[[Ore suplimentare   ]],Octombrie[[Ore suplimentare    ]])","v":{"v":0,"d":"0.0"}}]
[]
["Introduceți orele normale și orele suplimentare pentru noiembrie în tabel începând cu celula E112. Următoarele instrucțiuni se află în celula A121.",{"$nulls":3},"Noiembrie","Săptămâna 1","Ore suplimentare","Săptămâna 2","Ore suplimentare ","Săptămâna 3","Ore suplimentare  ","Săptămâna 4","Ore suplimentare    ","Săptămâna 5","Ore suplimentare     "]
[{"$nulls":4},"Luni"]
[{"$nulls":4},"Marți"]
[{"$nulls":4},"Miercuri"]
[{"$nulls":4},"Joi"]
[{"$nulls":4},"Vineri"]
[{"$nulls":4},"Sâmbătă"]
[{"$nulls":4},"Duminică"]
[{"$nulls":4},"Număr total de ore săptămânal",{"$f":"SUBTOTAL(109,Noiembrie[Săptămâna 1])","v":{"v":0,"d":"0.0"}},{"$f":"SUBTOTAL(109,Noiembrie[Ore suplimentare])","v":{"v":0,"d":"0.0"}},{"$f":"SUBTOTAL(109,Noiembrie[Săptămâna 2])","v":{"v":0,"d":"0.0"}},{"$f":"SUBTOTAL(109,Noiembrie[[Ore suplimentare ]])","v":{"v":0,"d":"0.0"}},{"$f":"SUBTOTAL(109,Noiembrie[Săptămâna 3])","v":{"v":0,"d":"0.0"}},{"$f":"SUBTOTAL(109,Noiembrie[[Ore suplimentare  ]])","v":{"v":0,"d":"0.0"}},{"$f":"SUBTOTAL(109,Noiembrie[Săptămâna 4])","v":{"v":0,"d":"0.0"}},{"$f":"SUBTOTAL(109,Noiembrie[[Ore suplimentare    ]])","v":{"v":0,"d":"0.0"}},{"$f":"SUBTOTAL(109,Noiembrie[Săptămâna 5])","v":{"v":0,"d":"0.0"}},{"$f":"SUBTOTAL(109,Noiembrie[[Ore suplimentare     ]])","v":{"v":0,"d":"0.0"}}]
["Totalul orelor normale pentru noiembrie din celula F121 și totalul orelor suplimentare pentru noiembrie din celula I121 se calculează automat. Următoarele instrucțiuni se află în celula A123.",{"$nulls":3},{"$f":"TEXT(DATEVALUE(Noiembrie[[#Headers],[Noiembrie]]&\" \"&YEAR(TODAY())),\"mmm.\")&\" total: Ore obișnuite\"","v":"nov. total: Ore obișnuite"},{"$f":"SUM(Noiembrie[Săptămâna 1],Noiembrie[Săptămâna 2],Noiembrie[Săptămâna 3],Noiembrie[Săptămâna 4],Noiembrie[Săptămâna 5])","v":{"v":0,"d":"0.0"}},{"$f":"TEXT(DATEVALUE(Noiembrie[[#Headers],[Noiembrie]]&\" \"&YEAR(TODAY())),\"mmm.\")&\" total: Ore suplimentare\"","v":"nov. total: Ore suplimentare"},null,{"$f":"SUM(Noiembrie[Ore suplimentare],Noiembrie[[Ore suplimentare ]],Noiembrie[[Ore suplimentare  ]],Noiembrie[[Ore suplimentare    ]],Noiembrie[[Ore suplimentare     ]])","v":{"v":0,"d":"0.0"}}]
[]
["Introduceți orele normale și orele suplimentare pentru decembrie în tabel începând cu celula E123. Următoarele instrucțiuni se află în celula A132.",{"$nulls":3},"Decembrie","Săptămâna 1","Ore suplimentare","Săptămâna 2","Ore suplimentare ","Săptămâna 3","Ore suplimentare  ","Săptămâna 4","Ore suplimentare   ","Săptămâna 5","Ore suplimentare    "]
[{"$nulls":4},"Luni"]
[{"$nulls":4},"Marți"]
[{"$nulls":4},"Miercuri"]
[{"$nulls":4},"Joi"]
[{"$nulls":4},"Vineri"]
[{"$nulls":4},"Sâmbătă"]
[{"$nulls":4},"Duminică"]
[{"$nulls":4},"Număr total de ore săptămânal",{"$f":"SUBTOTAL(109,Decembrie[Săptămâna 1])","v":{"v":0,"d":"0.0"}},{"$f":"SUBTOTAL(109,Decembrie[Ore suplimentare])","v":{"v":0,"d":"0.0"}},{"$f":"SUBTOTAL(109,Decembrie[Săptămâna 2])","v":{"v":0,"d":"0.0"}},{"$f":"SUBTOTAL(109,Decembrie[[Ore suplimentare ]])","v":{"v":0,"d":"0.0"}},{"$f":"SUBTOTAL(109,Decembrie[Săptămâna 3])","v":{"v":0,"d":"0.0"}},{"$f":"SUBTOTAL(109,Decembrie[[Ore suplimentare  ]])","v":{"v":0,"d":"0.0"}},{"$f":"SUBTOTAL(109,Decembrie[Săptămâna 4])","v":{"v":0,"d":"0.0"}},{"$f":"SUBTOTAL(109,Decembrie[[Ore suplimentare   ]])","v":{"v":0,"d":"0.0"}},{"$f":"SUBTOTAL(109,Decembrie[Săptămâna 5])","v":{"v":0,"d":"0.0"}},{"$f":"SUBTOTAL(109,Decembrie[[Ore suplimentare    ]])","v":{"v":0,"d":"0.0"}}]
["Totalul orelor normale pentru decembrie din celula F132 și totalul orelor suplimentare pentru decembrie din celula I132 se calculează automat.",{"$nulls":3},{"$f":"TEXT(DATEVALUE(Decembrie[[#Headers],[Decembrie]]&\" \"&YEAR(TODAY())),\"mmm.\")&\" total: Ore obișnuite\"","v":"dec. total: Ore obișnuite"},{"$f":"SUM(Decembrie[Săptămâna 1],Decembrie[Săptămâna 2],Decembrie[Săptămâna 3],Decembrie[Săptămâna 4],Decembrie[Săptămâna 5])","v":{"v":0,"d":"0.0"}},{"$f":"TEXT(DATEVALUE(Decembrie[[#Headers],[Decembrie]]&\" \"&YEAR(TODAY())),\"mmm.\")&\" total: Ore suplimentare\"","v":"dec. total: Ore suplimentare"},null,{"$f":"SUM(G124:G130,I124:I130,K124:K130,M124:M130,O124:O130)","v":{"v":0,"d":"0.0"}}]